Department Family,Entity,Pay date,Expense Type(T),Expense Area(T),Supplier(T),Transaction Number,Amount,Description
NS&I,NS&I,26/07/2023,Unitary fee - Outsource partner,Commercial and Legal,Atos IT Services UK Ltd,4024021,"5,671,960.45",Unitary service charge - July 2023
NS&I,NS&I,26/07/2023,Unitary fee - Outsource partner,B2B Government Payment Services,Atos IT Services UK Ltd,4023908,"1,464,751.45",Tax-free childcare service charges - July 2023
NS&I,NS&I,26/07/2023,Unitary fee - Outsource partner,B2B Government Payment Services,Atos IT Services UK Ltd,4023907,"721,638.14",Help to save service charges - July 2023
NS&I,NS&I,05/07/2023,Consultancy services,Rainbow,PA Consulting Services Ltd,4023829,"530,460.00",Strategic business advice and support
NS&I,NS&I,05/07/2023,Professional services - Other,Rainbow,IBM United Kingdom Ltd,4023853,"435,434.78",IT service charges May 2023
NS&I,NS&I,05/07/2023,Professional services - Other,Rainbow,IBM United Kingdom Ltd,4023866,"435,434.78",IT service charges May 2023
NS&I,NS&I,26/07/2023,Unitary fee - Outsource partner,B2B Government Payment Services,Atos IT Services UK Ltd,4023886,"434,956.80",Help to save service charges - June 2023
NS&I,NS&I,26/07/2023,Consultancy services,Rainbow,PA Consulting Services Ltd,4023949,"406,822.50",Strategic business advice and support
NS&I,NS&I,26/07/2023,Unitary fee - Outsource partner,B2B Government Payment Services,Atos IT Services UK Ltd,4023888,"361,878.88",Tax-free childcare service charges -  May 2023
NS&I,NS&I,26/07/2023,Unitary fee - Outsource partner,B2B Government Payment Services,Atos IT Services UK Ltd,4023981,"380,522.80",Help to buy service charges July 2023
NS&I,NS&I,26/07/2023,Unitary fee - Outsource partner,B2B Government Payment Services,Atos IT Services UK Ltd,4023925,"305,974.40",Help to save service charges - May 2023
NS&I,NS&I,26/07/2023,Unitary fee - Outsource partner,B2B Government Payment Services,Atos IT Services UK Ltd,4023909,"301,889.86",30 Hours service charges - July 2023
NS&I,NS&I,19/07/2023,Professional services - Other,Rainbow,Actica Consulting Ltd,4023966,"260,683.14",Strategic Business Design Support
NS&I,NS&I,26/07/2023,Professional services - Legal,Rainbow,Bevan Brittan LLP,4023961,"180,000.00",Legal Services June 2023
NS&I,NS&I,26/07/2023,Unitary fee - Outsource partner,B2B Government Payment Services,Atos IT Services UK Ltd,4023863,"208,695.83",Help to buy service charges June 2023
NS&I,NS&I,05/07/2023,Professional services - Other,Rainbow,Capgemini UK plc (SIAM Partner),4023834,"159,890.50",Service Integration and Management  Partner support 
NS&I,NS&I,13/07/2023,Unitary fee - Outsource partner,B2B Government Payment Services,Atos IT Services UK Ltd,4023922,"136,723.50",Court Funds Office Service Charges June 2023
NS&I,NS&I,26/07/2023,Project costs - Outsource partner,Programme Delivery,Atos IT Services UK Ltd,4024019,"126,240.00",Service change costs
NS&I,NS&I,28/07/2023,Product account bank charges,Finance,RBSG NS&I Charges A/c,4023993,"125,211.79",Quarterly Bank Charges March 2023 - June 2023
NS&I,NS&I,05/07/2023,Maintenance and running costs - Outsource partner,Information & Technology,Atos IT Services UK Ltd,4023880,"101,076.00",Strategy development cost
NS&I,NS&I,13/07/2023,Maintenance and running costs - Outsource partner,Change Delivery,Atos IT Services UK Ltd,4023874,"100,000.00",Programme management cost June 2023
NS&I,NS&I,13/07/2023,Maintenance and running costs - Outsource partner,Business Insight,Atos IT Services UK Ltd,4023905,"99,675.00",Data warehouse development work
NS&I,NS&I,05/07/2023,Market research,Market Intelligence & Research,IPSOS MORI UK Ltd,4023881,"96,816.43",Subscription for Financial Research Survey
NS&I,NS&I,13/07/2023,Consultancy services,Rainbow,PA Consulting Services Ltd,4023915,"95,370.00",Strategic business advice and support
NS&I,NS&I,19/07/2023,Professional services - Legal,Rainbow,Bevan Brittan LLP,4023826,"83,513.04",Legal Services March 2023
NS&I,NS&I,19/07/2023,Consultancy services,Rainbow,PA Consulting Services Ltd,4023959,"81,285.00",Strategic business advice and support
NS&I,NS&I,05/07/2023,Project costs - Outsource partner,Programme Delivery,Atos IT Services UK Ltd,4023851,"78,784.00",Customer journey improvements
NS&I,NS&I,05/07/2023,Project costs - Outsource partner,Programme Delivery,Atos IT Services UK Ltd,4023830,"77,000.00",Mobile Banking improvements
NS&I,NS&I,26/07/2023,Unitary fee - Outsource partner,B2B Government Payment Services,Atos IT Services UK Ltd,4023855,"72,495.56",Tax-free childcare service charges - May 2023
NS&I,NS&I,26/07/2023,Unitary fee - Outsource partner,B2B Government Payment Services,Atos IT Services UK Ltd,4023858,"72,495.56",30 Hours service charges - May 2023
NS&I,NS&I,26/07/2023,Maintenance and running costs - Outsource partner,Information & Technology,Atos IT Services UK Ltd,4024013,"69,434.00",Delivering IT orchestration improvements June 2023
NS&I,NS&I,26/07/2023,Project costs - Outsource partner,Programme Delivery,Atos IT Services UK Ltd,4023947,"58,608.00",Improving customer communication channels
NS&I,NS&I,05/07/2023,Internal audit fees,Risk,PricewaterhouseCoopers LLP,4023828,"57,000.00",Assurance project review
NS&I,NS&I,26/07/2023,Unitary fee - Outsource partner,B2B Government Payment Services,Atos IT Services UK Ltd,4023856,"55,232.49",Tax-free childcare service charges - May 2023
NS&I,NS&I,19/07/2023,Business intelligence and analysis,Market Intelligence & Research,Eleven FS Group Ltd,4023953,"47,160.00",Digital Market Intel Contract - Business intelligence and analysis 
NS&I,NS&I,19/07/2023,Professional services - Other,Rainbow,Bloom Procurement Services Limited,4023975,"43,560.00",Cost of Marketing Campaigns
NS&I,NS&I,05/07/2023,Advertising and production,Marketing Communications,Manning Gottlieb OMD,4023835,"39,735.90",Cost of Marketing Campaigns
NS&I,NS&I,13/07/2023,Professional services - Other,Complaint's Management,Financial Ombudsman Services,4023924,"35,250.00",Case Fee Charges July 2023
NS&I,NS&I,26/07/2023,Unitary fee - Outsource partner,B2B Government Payment Services,Atos IT Services UK Ltd,4023887,"29,421.10",Help to save service charges - May 2023
NS&I,NS&I,05/07/2023,Recruitment costs,HR,GatenbySanderson Limited,4023816,"29,400.00",Data maintenance work
NS&I,NS&I,13/07/2023,Maintenance and running costs - Outsource partner,Information & Technology,Atos IT Services UK Ltd,4023868,"29,312.00",FA portal website service costs
NS&I,NS&I,26/07/2023,Project costs - Outsource partner,Programme Delivery,Atos IT Services UK Ltd,4023954,"26,050.00",Enhancing operational flexibility
NS&I,NS&I,05/07/2023,Professional services - Other,Rainbow,IBM United Kingdom Ltd,4023894,"-435,434.78",IT service charges May 2023
